lending/lending_fUSD_20240401
["ID","MTS","AMOUNT","RATE_DAILY","PERIOD"]
[321236646,1712007049342,-500.0,0.00061168,120]
[321236647,1712007049351,-531.6,0.00061168,120]
[321236648,1712007049360,-500.0,0.00061168,120]
[321236649,1712007049369,-500.0,0.00061168,120]
[321236650,1712007049378,-500.0,0.00061168,120]
[321236651,1712007049388,-517.59,0.00061168,120]
[321236652,1712007049397,-500.0,0.00061168,120]
[321236653,1712007049406,-500.0,0.00061168,120]
[321236654,1712007049415,-5000.0,0.00061169,120]
[321236655,1712007049424,-500.0,0.00061169,120]
[321236656,1712007049433,-428.74,0.00061169,120]
[321236657,1712007049442,-500.0,0.00061169,120]
[321236658,1712007049451,-500.0,0.00061169,120]
[321236659,1712007049460,-500.0,0.00061169,120]
[321236660,1712007049470,-500.0,0.00061169,120]
[321236661,1712007049478,-500.0,0.00061169,120]
[321236662,1712007049488,-527.48,0.00061169,120]
[321236663,1712007049497,-500.0,0.00061169,120]
[321236664,1712007049507,-500.0,0.00061169,120]
[321236665,1712007049516,-3227.39,0.00061169,120]
[321236666,1712007049525,-298.66,0.00061169,120]
[321236667,1712007049534,-1339.37,0.00061169,120]
[321236668,1712007049543,-424.76,0.00061169,120]
[321236669,1712007049553,-500.0,0.00061169,120]
[321236670,1712007049562,-500.0,0.00061169,120]
[321236671,1712007049571,-500.0,0.00061169,120]
[321236672,1712007049580,-812.22,0.00061169,120]
[321236673,1712007049589,-554.08,0.00061169,120]
[321236674,1712007049598,-500.0,0.00061169,120]
[321236675,1712007049607,-5317.05,0.00061169,120]
[321236676,1712007049617,-500.0,0.00061169,120]
[321236677,1712007049627,-515.11,0.00061169,120]
[321236678,1712007049636,-253.88,0.00061169,120]
[321236679,1712007049645,-500.0,0.00061169,120]
[321236680,1712007049654,-1632.83,0.00061169,120]
[321236681,1712007049664,-667.28,0.00061169,120]
[321236682,1712007049673,-500.0,0.00061169,120]
[321236683,1712007049682,-500.0,0.00061169,120]
[321236684,1712007049691,-500.0,0.00061169,120]
[321236685,1712007049700,-593.19,0.00061169,120]
[321236686,1712007049709,-170.16,0.00061169,120]
[321236687,1712007049718,-4315.02,0.00061169,120]
[321236688,1712007049728,-500.0,0.00061169,120]
[321236689,1712007049737,-500.0,0.00061169,120]
[321236690,1712007049747,-185.26,0.00061169,120]
[321236691,1712007049757,-500.0,0.00061169,120]
[321236692,1712007049766,-2739.33,0.00061169,120]
[321236693,1712007049775,-500.0,0.00061169,120]
[321236694,1712007049784,-621.56,0.00061169,120]
[321236695,1712007049794,-500.0,0.00061169,120]
[321236696,1712007049804,-500.0,0.00061169,120]
[321236697,1712007049813,-256.22,0.00061169,120]
[321236698,1712007049822,-229.96,0.00061169,120]
[321236699,1712007049832,-450.96,0.00061169,120]
[321236700,1712007049842,-7145.39,0.00061169,120]
[321236701,1712007049852,-500.0,0.00061169,120]
[321236702,1712007049861,-500.0,0.00061169,120]
[321236703,1712007049872,-500.0,0.00061169,120]
[321236704,1712007049882,-896.45,0.00061169,120]
[321236705,1712007049892,-500.0,0.00061169,120]
[321236706,1712007049902,-500.0,0.00061169,120]
[321236707,1712007049913,-526.89,0.00061169,120]
[321236708,1712007049923,-500.0,0.00061169,120]
[321236709,1712007049934,-780.72,0.00061169,120]
[321236710,1712007049944,-500.0,0.00061169,120]
[321236711,1712007049954,-500.0,0.00061169,120]
[321236712,1712007049964,-1039.33,0.00061169,21]
[321236713,1712007049975,-583.12,0.00061169,120]
[321236714,1712007049984,-648.52,0.00061169,120]
[321236715,1712007049994,-500.0,0.00061169,120]
[321236716,1712007050004,-820.79,0.00061169,120]
[321236717,1712007050014,-500.0,0.00061169,120]
[321236718,1712007050024,-8275.33,0.00061169,120]
[321236719,1712007050035,-500.0,0.00061169,120]
[321236720,1712007050046,-500.0,0.00061169,120]
[321236721,1712007050056,-500.0,0.00061169,120]
[321236722,1712007050065,-151.32,0.00061169,120]
[321236723,1712007050076,-505.47,0.00061169,120]
[321236724,1712007050088,-500.0,0.00061169,120]
[321236725,1712007050099,-678.99,0.00061169,120]
[321236726,1712007050109,-500.0,0.00061169,120]
[321236727,1712007050119,-500.0,0.00061169,120]
[321236728,1712007050131,-1439.68,0.00061169,120]
[321236729,1712007050141,-500.0,0.00061169,120]
[321236730,1712007050151,-500.0,0.00061169,120]
[321236731,1712007050161,-500.0,0.00061169,120]
[321236732,1712007050174,-770.39,0.00061169,120]
[321236733,1712007050184,-500.0,0.00061169,120]
[321236734,1712007050194,-840.85,0.00061169,120]
[321236735,1712007050204,-595.69,0.00061169,120]
[321236736,1712007050214,-643.95,0.00061169,120]
[321236737,1712007050225,-500.0,0.00061169,120]
[321236738,1712007050235,-1999.43,0.00061169,120]
[321236739,1712007050246,-500.0,0.00061169,120]
[321236740,1712007050256,-500.0,0.00061169,120]
[321236741,1712007050267,-747.29,0.00061169,120]
[321236742,1712007050278,-500.0,0.00061169,120]
[321236743,1712007050289,-500.0,0.00061169,120]
[321236744,1712007050300,-500.0,0.00061169,120]
[321236745,1712007050311,-500.0,0.00061169,120]
[321236746,1712007050321,-500.0,0.00061169,120]
[321236747,1712007050331,-619.07,0.00061169,120]
[321236748,1712007050342,-582.76,0.00061169,120]
[321236749,1712007050352,-500.0,0.00061169,120]
[321236750,1712007050362,-500.0,0.00061169,120]
[321236751,1712007050373,-500.0,0.00061169,120]
[321236752,1712007050384,-500.0,0.00061169,120]
[321236753,1712007050394,-500.0,0.00061169,120]
[321236754,1712007050404,-2980.96,0.00061169,120]
[321236755,1712007050414,-566.6,0.00061169,120]
[321236756,1712007050424,-618.02,0.00061169,120]
[321236757,1712007050435,-717.37,0.00061169,120]
[321236758,1712007050445,-500.0,0.00061169,120]
[321236759,1712007050456,-500.0,0.00061169,120]
[321236760,1712007050465,-945.0,0.00061169,120]
[321236761,1712007050475,-1569.99,0.00061169,120]
[321236762,1712007050486,-500.0,0.00061169,120]
[321236763,1712007050496,-2089.19,0.00061169,120]
[321236764,1712007050506,-514.52,0.00061169,120]
[321236765,1712007050516,-207.34,0.00061169,120]
[321236766,1712007050526,-424.78,0.00061169,120]
[321236767,1712007050536,-707.64,0.00061169,120]
[321236768,1712007050546,-697.77,0.00061169,120]
[321236769,1712007050556,-554.45,0.00061169,120]
[321236770,1712007050566,-500.0,0.00061169,120]
[321236771,1712007050575,-544.08,0.00061169,120]
[321236772,1712007050585,-616.52,0.00061169,120]
[321236773,1712007050595,-645.14,0.00061169,120]
[321236774,1712007050604,-872.24,0.00061169,120]
[321236775,1712007050613,-500.0,0.00061169,120]
[321236776,1712007050622,-643.07,0.00061169,120]
[321236777,1712007050632,-757.38,0.00061169,120]
[321236778,1712007050641,-500.0,0.00061169,120]
[321236779,1712007050651,-500.0,0.00061169,120]
[321236780,1712007050660,-615.74,0.00061169,120]
[321236781,1712007050670,-625.74,0.00061169,120]
[321236782,1712007050679,-657.88,0.00061169,120]
[321236783,1712007050689,-523.84,0.00061169,120]
[321236784,1712007050699,-500.0,0.00061169,120]
[321236785,1712007050709,-500.0,0.00061169,120]
[321236786,1712007050718,-500.0,0.00061169,120]
[321236787,1712007050728,-500.0,0.00061169,120]
[321236788,1712007050738,-339.52,0.00061169,120]
[321236789,1712007050749,-506.02,0.00061169,120]
[321236790,1712007050759,-500.0,0.00061169,120]
[321236791,1712007050769,-500.0,0.00061169,120]
[321236792,1712007050779,-368.8,0.00061169,120]
[321236793,1712007050790,-500.0,0.00061169,120]
[321236794,1712007050799,-1320.38,0.00061169,120]
[321236795,1712007050809,-1355.63,0.00061169,120]
[321236796,1712007050818,-500.0,0.00061169,120]
[321236797,1712007050828,-587.12,0.00061169,120]
[321236798,1712007050838,-736.97,0.00061169,120]
[321236799,1712007050847,-1254.6,0.00061169,120]
[321236800,1712007050856,-1981.88,0.00061169,120]
[321236801,1712007050866,-500.0,0.00061169,120]
[321236802,1712007050875,-500.0,0.00061169,120]
[321236803,1712007050884,-438.76,0.00061169,120]
[321236804,1712007050894,-757.56,0.00061169,120]
[321236805,1712007050903,-500.0,0.00061169,120]
[321236806,1712007050913,-611.37,0.00061169,120]
[321236807,1712007050923,-500.0,0.00061169,120]
[321236808,1712007050932,-609.0,0.00061169,120]
[321236809,1712007050942,-500.0,0.00061169,120]
[321236810,1712007050951,-511.68,0.00061169,120]
[321236811,1712007050961,-500.0,0.00061169,120]
[321236812,1712007050970,-500.0,0.00061169,120]
[321236813,1712007050979,-1241.58,0.00061169,120]
[321236814,1712007050989,-500.0,0.00061169,120]
[321236815,1712007050998,-4139.49768943,0.00061171,40]
[321236816,1712007051007,-155.55297408,0.00061217,120]
[321236817,1712007051016,-1000.0,0.000613,7]
[321236818,1712007051121,-156.29243952,0.00061324,120]
[321236819,1712007051131,-162.10071881,0.00061357,120]
[321236820,1712007051142,-161.317624,0.00061411,30]
[321236821,1712007051153,-1217.0,0.00061413,15]
[321236822,1712007051164,-1217.0,0.00061423,15]
[321236823,1712007051174,-1217.0,0.00061433,15]
[321236824,1712007051185,-481.88892413,0.00061442,120]
[321236825,1712007051196,-680.46,0.00061442,120]
[321236826,1712007051206,-599.81,0.00061442,120]
[321236827,1712007051218,-519.19,0.00061442,120]
[321236828,1712007051229,-601.57,0.00061442,120]
[321236829,1712007051241,-513.33,0.00061442,120]
[321236830,1712007051251,-596.47,0.00061442,120]
[321236831,1712007051261,-500.0,0.00061442,120]
[321236832,1712007051271,-3391.36,0.00061442,120]
[321236833,1712007051282,-1369.95,0.00061442,120]
[321236834,1712007051291,-500.0,0.00061442,120]
[321236835,1712007051302,-687.98,0.00061442,120]
[321236836,1712007051312,-1071.64,0.00061442,120]
[321236837,1712007051322,-500.0,0.00061442,120]
[321236838,1712007051333,-1065.74,0.00061442,120]
[321236839,1712007051344,-500.0,0.00061442,120]
[321236840,1712007051353,-500.0,0.00061442,120]
[321236841,1712007051363,-1349.08,0.00061442,120]
[321236842,1712007051373,-500.0,0.00061442,120]
[321236843,1712007051383,-614.22,0.00061442,120]
[321236844,1712007051393,-748.08,0.00061442,120]
[321236845,1712007051402,-711.74,0.00061442,120]
[321236846,1712007051411,-500.0,0.00061442,120]
[321236847,1712007051420,-500.0,0.00061442,120]
[321236848,1712007051429,-447.6,0.00061442,120]
[321236849,1712007051439,-500.0,0.00061442,120]
[321236850,1712007051448,-500.0,0.00061442,120]
[321236851,1712007051457,-500.0,0.00061442,120]
[321236852,1712007051466,-500.0,0.00061442,120]
[321236853,1712007051476,-517.59,0.00061442,120]
[321236854,1712007051487,-500.0,0.00061442,120]
[321236855,1712007051498,-500.0,0.00061442,120]
[321236856,1712007051507,-629.58,0.00061443,120]
[321236857,1712007051516,-500.0,0.00061443,120]
[321236858,1712007051527,-500.0,0.00061443,120]
[321236859,1712007051537,-500.0,0.00061443,120]
[321236860,1712007051548,-360.84,0.00061443,120]
[321236861,1712007051557,-500.0,0.00061443,120]
[321236862,1712007051567,-500.0,0.00061443,120]
[321236863,1712007051576,-500.0,0.00061443,120]
[321236864,1712007051586,-3227.39,0.00061443,120]
[321236865,1712007051597,-1339.37,0.00061443,120]
[321236866,1712007051607,-500.0,0.00061443,120]
[321236867,1712007051617,-500.0,0.00061443,120]
[321236868,1712007051626,-500.0,0.00061443,120]
[321236869,1712007051636,-812.22,0.00061443,120]
[321236870,1712007051646,-500.0,0.00061443,120]
[321236871,1712007051656,-5317.05,0.00061443,120]
[321236872,1712007051665,-500.0,0.00061443,120]
[321236873,1712007051675,-515.11,0.00061443,120]
[321236874,1712007051685,-500.0,0.00061443,120]
[321236875,1712007051695,-1632.83,0.00061443,120]
[321236876,1712007051704,-667.28,0.00061443,120]
[321236877,1712007051714,-176.34,0.00061443,120]
[321236878,1712007051723,-500.0,0.00061443,120]
[321236879,1712007051733,-500.0,0.00061443,120]
[321236880,1712007051743,-593.19,0.00061443,120]
[321236881,1712007051754,-4315.02,0.00061443,120]
[321236882,1712007051763,-500.0,0.00061443,120]
[321236883,1712007051773,-500.0,0.00061443,120]
[321236884,1712007051784,-500.0,0.00061443,120]
[321236885,1712007051794,-2739.33,0.00061443,120]
[321236886,1712007051804,-500.0,0.00061443,120]
[321236887,1712007051813,-500.0,0.00061443,120]
[321236888,1712007051823,-500.0,0.00061443,120]
[321236889,1712007051833,-7145.39,0.00061443,120]
[321236890,1712007051842,-500.0,0.00061443,120]
[321236891,1712007051852,-500.0,0.00061443,120]
[321236892,1712007051862,-500.0,0.00061443,120]
[321236893,1712007051872,-896.45,0.00061443,120]
[321236894,1712007051882,-500.0,0.00061443,120]
[321236895,1712007051892,-500.0,0.00061443,120]
[321236896,1712007051903,-500.0,0.00061443,120]
[321236897,1712007051913,-526.89,0.00061443,120]
[321236898,1712007051924,-780.72,0.00061443,120]
[321236899,1712007051935,-500.0,0.00061443,120]
[321236900,1712007051945,-500.0,0.00061443,120]
[321236901,1712007051955,-1039.33,0.00061443,21]
[321236902,1712007051966,-648.52,0.00061443,120]
[321236903,1712007051977,-500.0,0.00061443,120]
[321236904,1712007051988,-820.79,0.00061443,120]
[321236905,1712007051998,-500.0,0.00061443,120]
[321236906,1712007052008,-8275.33,0.00061443,120]
[321236907,1712007052019,-500.0,0.00061443,120]
[321236908,1712007052029,-500.0,0.00061443,120]
[321236909,1712007052039,-500.0,0.00061443,120]
[321236910,1712007052050,-505.47,0.00061443,120]
[321236911,1712007052060,-500.0,0.00061443,120]
[321236912,1712007052070,-678.99,0.00061443,120]
[321236913,1712007052082,-500.0,0.00061443,120]
[321236914,1712007052094,-628.02,0.00061443,120]
[321236915,1712007052105,-1439.68,0.00061443,120]
[321236916,1712007052116,-526.74,0.00061443,120]
[321236917,1712007052127,-500.0,0.00061443,120]
[321236918,1712007052139,-500.0,0.00061443,120]
[321236919,1712007052148,-770.39,0.00061443,120]
[321236920,1712007052157,-500.0,0.00061443,120]
[321236921,1712007052170,-840.85,0.00061443,120]
[321236922,1712007052181,-595.69,0.00061443,120]
[321236923,1712007052192,-643.95,0.00061443,120]
[321236924,1712007052202,-588.32,0.00061443,120]
[321236925,1712007052213,-1999.43,0.00061443,120]
[321236926,1712007052223,-279.5,0.00061443,120]
[321236927,1712007052235,-500.0,0.00061443,120]
[321236928,1712007052244,-747.29,0.00061443,120]
[321236929,1712007052254,-500.0,0.00061443,120]
[321236930,1712007052264,-497.44,0.00061443,120]
[321236931,1712007052273,-500.0,0.00061443,120]
[321236932,1712007052284,-500.0,0.00061443,120]
[321236933,1712007052295,-500.0,0.00061443,120]
[321236934,1712007052305,-619.07,0.00061443,120]
[321236935,1712007052315,-582.76,0.00061443,120]
[321236936,1712007052324,-280.34,0.00061443,120]
[321236937,1712007052336,-249.12,0.00061443,120]
[321236938,1712007052346,-500.0,0.00061443,120]
[321236939,1712007052357,-514.04,0.00061443,120]
[321236940,1712007052367,-500.0,0.00061443,120]
[321236941,1712007052376,-2980.96,0.00061443,120]
[321236942,1712007052388,-566.6,0.00061443,120]
[321236943,1712007052398,-618.02,0.00061443,120]
[321236944,1712007052408,-717.37,0.00061443,120]
[321236945,1712007052418,-500.0,0.00061443,120]
[321236946,1712007052430,-500.0,0.00061443,120]
[321236947,1712007052440,-945.0,0.00061443,120]
[321236948,1712007052450,-1569.99,0.00061443,120]
[321236949,1712007052460,-500.0,0.00061443,120]
[321236950,1712007052471,-2089.19,0.00061443,120]
[321236951,1712007052482,-707.64,0.00061443,120]
[321236952,1712007052492,-697.77,0.00061443,120]
[321236953,1712007052504,-554.45,0.00061443,120]
[321236954,1712007052515,-500.0,0.00061443,120]
[321236955,1712007052525,-544.08,0.00061443,120]
[321236956,1712007052535,-616.52,0.00061443,120]
[321236957,1712007052544,-1000.0,0.00061443,120]
[321236958,1712007052555,-872.24,0.00061443,120]
[321236959,1712007052564,-500.0,0.00061443,120]
[321236960,1712007052574,-643.07,0.00061443,120]
[321236961,1712007052583,-757.38,0.00061443,120]
[321236962,1712007052592,-500.0,0.00061443,120]
[321236963,1712007052602,-500.0,0.00061443,120]
[321236964,1712007052611,-615.74,0.00061443,120]
[321236965,1712007052621,-657.88,0.00061443,120]
[321236966,1712007052630,-523.84,0.00061443,120]
[321236967,1712007052639,-500.0,0.00061443,120]
[321236968,1712007052649,-500.0,0.00061443,120]
[321236969,1712007052658,-500.0,0.00061443,120]
[321236970,1712007052668,-343.34,0.00061443,120]
[321236971,1712007052678,-500.0,0.00061443,120]
[321236972,1712007052688,-242.96,0.00061443,120]
[321236973,1712007052698,-312.4,0.00061443,120]
[321236974,1712007052708,-1320.38,0.00061443,120]
[321236975,1712007052717,-1355.63,0.00061443,120]
[321236976,1712007052727,-616.36,0.00061443,120]
[321236977,1712007052737,-1254.6,0.00061443,120]
[321236978,1712007052748,-736.97,0.00061443,120]
[321236979,1712007052757,-1981.88,0.00061443,120]
[321236980,1712007052766,-500.0,0.00061443,120]
[321236981,1712007052776,-500.0,0.00061443,120]
[321236982,1712007052786,-757.56,0.00061443,120]
[321236983,1712007052795,-500.0,0.00061443,120]
[321236984,1712007052804,-611.37,0.00061443,120]
[321236985,1712007052814,-633.74,0.00061443,120]
[321236986,1712007052823,-609.0,0.00061443,120]
[321236987,1712007052832,-500.0,0.00061443,120]
[321236988,1712007052840,-511.68,0.00061443,120]
[321236989,1712007052850,-500.0,0.00061443,120]
[321236990,1712007052860,-500.0,0.00061443,120]
[321236991,1712007052869,-1241.58,0.00061443,120]
[321236992,1712007052878,-500.0,0.00061443,120]
[321236993,1712007052888,-2246.57,0.00061454,2]
[321236994,1712007052898,-153.64349601,0.00061459,120]
[321236995,1712007052908,-209.0,0.0006147,30]
[321236996,1712007052917,-7500.0,0.00061489,120]
[321236997,1712007052927,-348.0,0.000615,116]
[321236998,1712007052937,-159.22581972,0.00061528,120]
[321236999,1712007052947,-4139.49768943,0.00061542,41]
[321237000,1712007052957,-159.22581972,0.00061581,120]
[321237001,1712007052968,-151.0,0.000616,120]
[321237002,1712007052978,-1000.0,0.000616,7]
[321237003,1712007052988,-200.0,0.0006161,30]
[321237004,1712007052999,-500.0,0.00061668,90]
[321237005,1712007053009,-500.0,0.00061668,90]
[321237006,1712007053019,-308.10067858,0.00061668,90]
[321237007,1712007053028,-500.0,0.00061668,90]
[321237008,1712007053039,-150.38124941,0.00061707,120]
[321237009,1712007053050,-680.46,0.00061716,120]
[321237010,1712007053061,-599.81,0.00061716,120]
[321237011,1712007053158,-519.19,0.00061716,120]
[321237012,1712007053170,-601.57,0.00061716,120]
[321237013,1712007053182,-513.33,0.00061716,120]
[321237014,1712007053192,-596.47,0.00061716,120]
[321237015,1712007053202,-500.0,0.00061716,120]
[321237016,1712007053213,-3391.36,0.00061716,120]
[321237017,1712007053223,-1369.95,0.00061716,120]
[321237018,1712007053234,-500.0,0.00061716,120]
[321237019,1712007053243,-687.98,0.00061716,120]
[321237020,1712007053254,-1071.64,0.00061716,120]
[321237021,1712007053265,-500.0,0.00061716,120]
[321237022,1712007053276,-1065.74,0.00061716,120]
[321237023,1712007053286,-500.0,0.00061716,120]
[321237024,1712007053297,-500.0,0.00061716,120]
[321237025,1712007053307,-1349.08,0.00061716,120]
[321237026,1712007053317,-500.0,0.00061716,120]
[321237027,1712007053328,-748.08,0.00061716,120]
[321237028,1712007053339,-711.74,0.00061716,120]
[321237029,1712007053350,-500.0,0.00061716,120]
[321237030,1712007053360,-500.0,0.00061716,120]
[321237031,1712007053370,-500.0,0.00061716,120]
[321237032,1712007053383,-156.14,0.00061716,120]
[321237033,1712007053393,-500.0,0.00061716,120]
[321237034,1712007053404,-500.0,0.00061716,120]
[321237035,1712007053416,-517.59,0.00061716,120]
[321237036,1712007053427,-500.0,0.00061716,120]
[321237037,1712007053437,-500.0,0.00061716,120]
[321237038,1712007053447,-254.8,0.00061717,120]
[321237039,1712007053459,-433.66,0.00061717,120]
[321237040,1712007053468,-500.0,0.00061717,120]
[321237041,1712007053477,-500.0,0.00061717,120]
[321237042,1712007053486,-500.0,0.00061717,120]
[321237043,1712007053495,-500.0,0.00061717,120]
[321237044,1712007053506,-3227.39,0.00061717,120]
[321237045,1712007053515,-1339.37,0.00061717,120]
[321237046,1712007053524,-500.0,0.00061717,120]
[321237047,1712007053533,-500.0,0.00061717,120]
[321237048,1712007053542,-500.0,0.00061717,120]
[321237049,1712007053552,-812.22,0.00061717,120]
[321237050,1712007053561,-496.96,0.00061717,120]
[321237051,1712007053569,-5317.05,0.00061717,120]
[321237052,1712007053578,-500.0,0.00061717,120]
[321237053,1712007053588,-515.11,0.00061717,120]
[321237054,1712007053597,-500.0,0.00061717,120]
[321237055,1712007053606,-1632.83,0.00061717,120]
[321237056,1712007053615,-667.28,0.00061717,120]
[321237057,1712007053625,-325.44,0.00061717,120]
[321237058,1712007053634,-500.0,0.00061717,120]
[321237059,1712007053643,-593.19,0.00061717,120]
[321237060,1712007053652,-4315.02,0.00061717,120]
[321237061,1712007053661,-346.14,0.00061717,120]
[321237062,1712007053670,-500.0,0.00061717,120]
[321237063,1712007053679,-500.0,0.00061717,120]
[321237064,1712007053688,-2739.33,0.00061717,120]
[321237065,1712007053697,-500.0,0.00061717,120]
[321237066,1712007053706,-530.62,0.00061717,120]
[321237067,1712007053714,-500.0,0.00061717,120]
[321237068,1712007053724,-7145.39,0.00061717,120]
[321237069,1712007053733,-500.0,0.00061717,120]
[321237070,1712007053742,-500.0,0.00061717,120]
[321237071,1712007053751,-559.3,0.00061717,120]
[321237072,1712007053761,-896.45,0.00061717,120]
[321237073,1712007053770,-500.0,0.00061717,120]
[321237074,1712007053779,-500.0,0.00061717,120]
[321237075,1712007053789,-500.0,0.00061717,120]
[321237076,1712007053798,-526.89,0.00061717,120]
[321237077,1712007053807,-780.72,0.00061717,120]
[321237078,1712007053816,-500.0,0.00061717,120]
[321237079,1712007053826,-500.0,0.00061717,120]
[321237080,1712007053834,-1039.33,0.00061717,21]
[321237081,1712007053844,-648.52,0.00061717,120]
[321237082,1712007053853,-500.0,0.00061717,120]
[321237083,1712007053863,-820.79,0.00061717,120]
[321237084,1712007053872,-500.0,0.00061717,120]
[321237085,1712007053882,-8275.33,0.00061717,120]
[321237086,1712007053892,-500.0,0.00061717,120]
[321237087,1712007053902,-500.0,0.00061717,120]
[321237088,1712007053911,-500.0,0.00061717,120]
[321237089,1712007053921,-505.47,0.00061717,120]
[321237090,1712007053930,-678.99,0.00061717,120]
[321237091,1712007053940,-500.0,0.00061717,120]
[321237092,1712007053949,-500.0,0.00061717,120]
[321237093,1712007053960,-1439.68,0.00061717,120]
[321237094,1712007053970,-500.0,0.00061717,120]
[321237095,1712007053979,-500.0,0.00061717,120]
[321237096,1712007053988,-500.0,0.00061717,120]
[321237097,1712007053998,-770.39,0.00061717,120]
[321237098,1712007054007,-840.85,0.00061717,120]
[321237099,1712007054017,-595.69,0.00061717,120]
[321237100,1712007054027,-643.95,0.00061717,120]
[321237101,1712007054036,-1999.43,0.00061717,120]
[321237102,1712007054046,-617.62,0.00061717,120]
[321237103,1712007054056,-747.29,0.00061717,120]
[321237104,1712007054066,-500.0,0.00061717,120]
[321237105,1712007054075,-500.0,0.00061717,120]
[321237106,1712007054085,-500.0,0.00061717,120]
[321237107,1712007054096,-500.0,0.00061717,120]
[321237108,1712007054106,-619.07,0.00061717,120]
[321237109,1712007054115,-582.76,0.00061717,120]
[321237110,1712007054125,-500.0,0.00061717,120]
[321237111,1712007054136,-500.0,0.00061717,120]
[321237112,1712007054145,-2980.96,0.00061717,120]
[321237113,1712007054155,-566.6,0.00061717,120]
[321237114,1712007054167,-618.02,0.00061717,120]
[321237115,1712007054176,-717.37,0.00061717,120]
[321237116,1712007054186,-277.39,0.00061717,120]
[321237117,1712007054196,-500.0,0.00061717,120]
[321237118,1712007054206,-945.0,0.00061717,120]
[321237119,1712007054216,-1569.99,0.00061717,120]
[321237120,1712007054226,-547.5,0.00061717,120]
[321237121,1712007054235,-2089.19,0.00061717,120]
[321237122,1712007054244,-707.64,0.00061717,120]
[321237123,1712007054255,-697.77,0.00061717,120]
[321237124,1712007054265,-554.45,0.00061717,120]
[321237125,1712007054274,-183.02,0.00061717,120]
[321237126,1712007054283,-544.08,0.00061717,120]
[321237127,1712007054292,-616.52,0.00061717,120]
[321237128,1712007054302,-872.24,0.00061717,120]
[321237129,1712007054311,-500.0,0.00061717,120]
[321237130,1712007054321,-643.07,0.00061717,120]
[321237131,1712007054330,-757.38,0.00061717,120]
[321237132,1712007054339,-500.0,0.00061717,120]
[321237133,1712007054349,-500.0,0.00061717,120]
[321237134,1712007054358,-615.74,0.00061717,120]
[321237135,1712007054367,-657.88,0.00061717,120]
[321237136,1712007054376,-523.84,0.00061717,120]
[321237137,1712007054385,-500.0,0.00061717,120]
[321237138,1712007054395,-500.0,0.00061717,120]
[321237139,1712007054404,-429.04,0.00061717,120]
[321237140,1712007054413,-500.0,0.00061717,120]
[321237141,1712007054423,-1320.38,0.00061717,120]
[321237142,1712007054432,-1355.63,0.00061717,120]
[321237143,1712007054442,-1254.6,0.00061717,120]
[321237144,1712007054451,-736.97,0.00061717,120]
[321237145,1712007054461,-1981.88,0.00061717,120]